[Event "Titled Tuesday Blitz May 23 Early 2023"]
[White "Mouhamad, Joachim"]
[Black "Thecourseoisildur"]
[WhiteFideId "656410"]
[WhiteElo "2125"]
[BlackElo "2583"]
[Result "0-1"]
[Round "10"]
[TimeControl "180+2"]
[Date "2023.05.23"]
[WhiteClock "0:00:00"]
[BlackClock "0:00:05"]

1. e4 {[%clk 0:03:00]}  c5 {[%clk 0:02:59]} 2. Nf3 {[%clk 0:03:01]}  e6 {[%clk 0:02:58]} 3. d4 {[%clk 0:03:01]}  cxd4 {[%clk 0:02:59]} 4. Nxd4 {[%clk 0:03:01]}  Nf6 {[%clk 0:02:59]} 5. Nc3 {[%clk 0:03:01]}  Nc6 {[%clk 0:03:00]} 6. Ndb5 {[%clk 0:03:01]}  Bc5 {[%clk 0:02:59]} 7. Bf4 {[%clk 0:02:59]}  O-O {[%clk 0:02:59]} 8. Bc7 {[%clk 0:03:00]}  Qe7 {[%clk 0:02:58]} 9. Bd6 {[%clk 0:03:00]}  Bxd6 {[%clk 0:02:59]} 10. Qxd6 {[%clk 0:02:59]}  Qd8 {[%clk 0:02:59]} 11. O-O-O {[%clk 0:02:48]}  a6 {[%clk 0:02:58]} 12. Nd4 {[%clk 0:02:48]}  Ne7 {[%clk 0:02:58]} 13. g4 {[%clk 0:02:33]}  Ne8 {[%clk 0:02:26]} 14. Qg3 {[%clk 0:02:23]}  d6 {[%clk 0:02:25]} 15. h4 {[%clk 0:02:20]}  b5 {[%clk 0:02:10]} 16. g5 {[%clk 0:02:17]}  Bb7 {[%clk 0:02:08]} 17. Bd3 {[%clk 0:02:06]}  Rc8 {[%clk 0:02:07]} 18. Nce2 {[%clk 0:02:02]}  e5 {[%clk 0:01:58]} 19. Nb3 {[%clk 0:01:48]}  Nc7 {[%clk 0:01:45]} 20. g6 {[%clk 0:01:42]}  fxg6 {[%clk 0:01:36]} 21. h5 {[%clk 0:01:42]}  Ne6 {[%clk 0:01:28]} 22. hxg6 {[%clk 0:01:35]}  Nxg6 {[%clk 0:01:21]} 23. Rdg1 {[%clk 0:01:35]}  Qf6 {[%clk 0:01:18]} 24. Qh3 {[%clk 0:01:26]}  Nef4 {[%clk 0:01:03]} 25. Qxh7+ {[%clk 0:01:00]}  Kf7 {[%clk 0:01:02]} 26. Nxf4 {[%clk 0:01:00]}  Nxf4 {[%clk 0:01:02]} 27. Kb1 {[%clk 0:00:23]}  d5 {[%clk 0:00:41]} 28. exd5 {[%clk 0:00:23]}  Bxd5 {[%clk 0:00:40]} 29. Be4 {[%clk 0:00:16]}  Bxe4 {[%clk 0:00:14]} 30. Qxe4 {[%clk 0:00:16]}  Rc4 {[%clk 0:00:14]} 31. Qb7+ {[%clk 0:00:15]}  Kg8 {[%clk 0:00:14]} 32. Nd2 {[%clk 0:00:10]}  Rf7 {[%clk 0:00:04]} 33. Qa8+ {[%clk 0:00:08]}  Rf8 {[%clk 0:00:05]} 34. Qb7 {[%clk 0:00:06]}  Rf7 {[%clk 0:00:04]} 35. Qb8+ {[%clk 0:00:02]}  Rf8 {[%clk 0:00:04]} 36. Qb6 {[%clk 0:00:03]}  Qxb6 {[%clk 0:00:03]} 37. Nxc4 {[%clk 0:00:04]}  bxc4 {[%clk 0:00:04]} 38. b3 {[%clk 0:00:02]}  c3 {[%clk 0:00:04]} 39. a3 {[%clk 0:00:02]}  Qc5 {[%clk 0:00:04]} 40. Ka2 {[%clk 0:00:02]}  Qxf2 {[%clk 0:00:03]} 41. Rc1 {[%clk 0:00:02]}  Nd3 {[%clk 0:00:04]} 42. Rhd1 {[%clk 0:00:02]}  Nxc1+ {[%clk 0:00:04]} 43. Rxc1 {[%clk 0:00:00]}  Qd2 {[%clk 0:00:05]} 0-1


[Site "https://www.chess.com"]

[Event "Titled Tuesday Blitz May 23 Early 2023"]
[White "Mrudul Dehankar"]
[Black "Kiremitciyan, Ari"]
[WhiteFideId "25096990"]
[BlackFideId "6373445"]
[WhiteElo "2139"]
[BlackElo "2181"]
[Result "0-1"]
[Round "10"]
[TimeControl "180+2"]
[Date "2023.05.23"]
[WhiteClock "0:00:02"]
[BlackClock "0:00:04"]

1. e4 {[%clk 0:02:52]}  e5 {[%clk 0:02:59]} 2. Nf3 {[%clk 0:02:51]}  Nc6 {[%clk 0:02:59]} 3. Bc4 {[%clk 0:02:50]}  g6 {[%clk 0:02:59]} 4. O-O {[%clk 0:02:43]}  Bg7 {[%clk 0:02:58]} 5. c3 {[%clk 0:02:41]}  d6 {[%clk 0:02:56]} 6. d4 {[%clk 0:02:41]}  Nge7 {[%clk 0:02:50]} 7. d5 {[%clk 0:02:14]}  Nb8 {[%clk 0:02:49]} 8. Bd3 {[%clk 0:02:12]}  h6 {[%clk 0:02:48]} 9. b4 {[%clk 0:01:58]}  O-O {[%clk 0:02:44]} 10. c4 {[%clk 0:01:56]}  Nd7 {[%clk 0:02:35]} 11. a3 {[%clk 0:01:50]}  f5 {[%clk 0:02:35]} 12. Nc3 {[%clk 0:01:49]}  Nf6 {[%clk 0:02:35]} 13. Bd2 {[%clk 0:01:44]}  f4 {[%clk 0:02:25]} 14. Rc1 {[%clk 0:01:43]}  g5 {[%clk 0:02:25]} 15. c5 {[%clk 0:01:41]}  Ng6 {[%clk 0:02:25]} 16. Ne1 {[%clk 0:01:38]}  g4 {[%clk 0:02:20]} 17. f3 {[%clk 0:01:24]}  g3 {[%clk 0:02:18]} 18. h3 {[%clk 0:01:13]}  Bxh3 {[%clk 0:01:39]} 19. gxh3 {[%clk 0:01:09]}  Qd7 {[%clk 0:01:40]} 20. Qe2 {[%clk 0:01:00]}  Qxh3 {[%clk 0:01:36]} 21. Qg2 {[%clk 0:00:43]}  Qh5 {[%clk 0:01:33]} 22. Ne2 {[%clk 0:00:11]}  Nh4 {[%clk 0:01:17]} 23. Qh1 {[%clk 0:00:10]}  g2 {[%clk 0:01:11]} 24. Nxg2 {[%clk 0:00:10]}  Nxf3+ {[%clk 0:01:12]} 25. Rxf3 {[%clk 0:00:10]}  Qxf3 {[%clk 0:01:13]} 26. Rc3 {[%clk 0:00:08]}  Ng4 {[%clk 0:01:04]} 27. Qh4 {[%clk 0:00:07]}  Ne3 {[%clk 0:00:55]} 28. Bxe3 {[%clk 0:00:06]}  fxe3 {[%clk 0:00:55]} 29. Rc1 {[%clk 0:00:06]}  Rf7 {[%clk 0:00:31]} 30. Qg3 {[%clk 0:00:06]}  Qh5 {[%clk 0:00:16]} 31. Nc3 {[%clk 0:00:04]}  Rf3 {[%clk 0:00:15]} 32. Be2 {[%clk 0:00:03]}  Rxg3 {[%clk 0:00:10]} 33. Bxh5 {[%clk 0:00:04]}  Rf8 {[%clk 0:00:07]} 34. Rf1 {[%clk 0:00:01]}  Rxf1+ {[%clk 0:00:04]} 35. Kxf1 {[%clk 0:00:02]}  Rh3 {[%clk 0:00:04]} 36. Be2 {[%clk 0:00:02]}  Rh1# {[%clk 0:00:04]} 0-1


[Site "https://www.chess.com"]

[Event "Titled Tuesday Blitz May 23 Early 2023"]
[White "Spata, German"]
[Black "Senft, Sean"]
[WhiteFideId "113026"]
[BlackFideId "2044960"]
[WhiteElo "2260"]
[BlackElo "1989"]
[Result "0-1"]
[Round "10"]
[TimeControl "180+2"]
[Date "2023.05.23"]
[WhiteClock "0:00:00"]
[BlackClock "0:00:17"]

1. Nf3 {[%clk 0:02:57]}  c5 {[%clk 0:03:00]} 2. g3 {[%clk 0:02:57]}  Nc6 {[%clk 0:02:59]} 3. Bg2 {[%clk 0:02:58]}  g6 {[%clk 0:03:00]} 4. O-O {[%clk 0:02:57]}  Bg7 {[%clk 0:03:00]} 5. d3 {[%clk 0:02:58]}  e5 {[%clk 0:03:01]} 6. e4 {[%clk 0:02:58]}  Nge7 {[%clk 0:03:01]} 7. Nbd2 {[%clk 0:02:58]}  d6 {[%clk 0:03:01]} 8. Nc4 {[%clk 0:02:57]}  O-O {[%clk 0:02:59]} 9. a4 {[%clk 0:02:57]}  f5 {[%clk 0:02:56]} 10. exf5 {[%clk 0:02:52]}  Bxf5 {[%clk 0:02:43]} 11. c3 {[%clk 0:02:51]}  Qd7 {[%clk 0:02:34]} 12. Qb3 {[%clk 0:02:42]}  Kh8 {[%clk 0:02:21]} 13. Ne3 {[%clk 0:02:36]}  Bxd3 {[%clk 0:02:15]} 14. Re1 {[%clk 0:02:28]}  d5 {[%clk 0:01:57]} 15. c4 {[%clk 0:02:14]}  e4 {[%clk 0:01:54]} 16. cxd5 {[%clk 0:02:03]}  Nd4 {[%clk 0:00:58]} 17. Nxd4 {[%clk 0:01:56]}  Bxd4 {[%clk 0:00:58]} 18. Bd2 {[%clk 0:01:45]}  c4 {[%clk 0:00:35]} 19. Qa3 {[%clk 0:01:35]}  Nxd5 {[%clk 0:00:33]} 20. Nxd5 {[%clk 0:01:15]}  Bxf2+ {[%clk 0:00:31]} 21. Kh1 {[%clk 0:01:15]}  Bxe1 {[%clk 0:00:28]} 22. Bc3+ {[%clk 0:01:12]}  Bxc3 {[%clk 0:00:28]} 23. Qxc3+ {[%clk 0:01:12]}  Qg7 {[%clk 0:00:26]} 24. Qb4 {[%clk 0:01:07]}  Qd4 {[%clk 0:00:22]} 25. Nf4 {[%clk 0:00:53]}  Rae8 {[%clk 0:00:19]} 26. Qxb7 {[%clk 0:00:52]}  e3 {[%clk 0:00:18]} 27. Re1 {[%clk 0:00:44]}  e2 {[%clk 0:00:19]} 28. Qc7 {[%clk 0:00:28]}  Qf2 {[%clk 0:00:14]} 29. Qa5 {[%clk 0:00:23]}  Rxf4 {[%clk 0:00:11]} 30. gxf4 {[%clk 0:00:23]}  Qxf4 {[%clk 0:00:12]} 31. Qc3+ {[%clk 0:00:23]}  Kg8 {[%clk 0:00:12]} 32. Bd5+ {[%clk 0:00:21]}  Kf8 {[%clk 0:00:12]} 33. Qh8+ {[%clk 0:00:17]}  Ke7 {[%clk 0:00:13]} 34. Qxh7+ {[%clk 0:00:16]}  Kd8 {[%clk 0:00:13]} 35. Bg2 {[%clk 0:00:15]}  Be4 {[%clk 0:00:13]} 36. Qh3 {[%clk 0:00:14]}  Bxg2+ {[%clk 0:00:13]} 37. Qxg2 {[%clk 0:00:14]}  Qe4 {[%clk 0:00:13]} 38. Qxe4 {[%clk 0:00:08]}  Rxe4 {[%clk 0:00:14]} 39. Kg2 {[%clk 0:00:09]}  Kc7 {[%clk 0:00:15]} 40. Kf3 {[%clk 0:00:10]}  Re6 {[%clk 0:00:14]} 41. Rxe2 {[%clk 0:00:10]}  Rxe2 {[%clk 0:00:08]} 42. Kxe2 {[%clk 0:00:11]}  Kb6 {[%clk 0:00:07]} 43. Kd2 {[%clk 0:00:06]}  Kc5 {[%clk 0:00:06]} 44. Kc3 {[%clk 0:00:06]}  g5 {[%clk 0:00:06]} 45. h3 {[%clk 0:00:02]}  a5 {[%clk 0:00:06]} 46. b3 {[%clk 0:00:02]}  cxb3 {[%clk 0:00:07]} 47. Kxb3 {[%clk 0:00:03]}  Kd4 {[%clk 0:00:08]} 48. Kb2 {[%clk 0:00:03]}  Kc4 {[%clk 0:00:08]} 49. Kc2 {[%clk 0:00:03]}  Kb4 {[%clk 0:00:09]} 50. Kb2 {[%clk 0:00:03]}  Kxa4 {[%clk 0:00:09]} 51. Kc3 {[%clk 0:00:04]}  Kb5 {[%clk 0:00:09]} 52. Kb3 {[%clk 0:00:04]}  Kc5 {[%clk 0:00:10]} 53. Ka4 {[%clk 0:00:04]}  Kd4 {[%clk 0:00:11]} 54. Kxa5 {[%clk 0:00:05]}  Ke3 {[%clk 0:00:12]} 55. Kb4 {[%clk 0:00:05]}  Kf3 {[%clk 0:00:12]} 56. Kc3 {[%clk 0:00:06]}  Kg3 {[%clk 0:00:13]} 57. Kd3 {[%clk 0:00:07]}  Kxh3 {[%clk 0:00:14]} 58. Ke3 {[%clk 0:00:07]}  g4 {[%clk 0:00:14]} 59. Ke2 {[%clk 0:00:01]}  Kh2 {[%clk 0:00:14]} 60. Kf1 {[%clk 0:00:01]}  g3 {[%clk 0:00:15]} 61. Ke2 {[%clk 0:00:02]}  g2 {[%clk 0:00:16]} 62. Kf2 {[%clk 0:00:00]}  g1=Q+ {[%clk 0:00:17]} 0-1


[Site "https://www.chess.com"]

[Event "Titled Tuesday Blitz May 23 Early 2023"]
[White "zsizsi99"]
[Black "robertoalejandro10"]
[WhiteElo "2446"]
[BlackElo "2566"]
[Result "0-1"]
[Round "10"]
[TimeControl "180+2"]
[Date "2023.05.23"]
[WhiteClock "0:00:00"]
[BlackClock "0:01:49"]

1. e4 {[%clk 0:02:47]}  c5 {[%clk 0:02:59]} 2. Nf3 {[%clk 0:02:47]}  g6 {[%clk 0:03:00]} 3. c3 {[%clk 0:02:46]}  d5 {[%clk 0:03:00]} 4. e5 {[%clk 0:02:43]}  d4 {[%clk 0:02:58]} 5. cxd4 {[%clk 0:02:30]}  cxd4 {[%clk 0:02:59]} 6. Qa4+ {[%clk 0:02:30]}  Nc6 {[%clk 0:02:59]} 7. Bb5 {[%clk 0:02:29]}  Bd7 {[%clk 0:03:00]} 8. Bxc6 {[%clk 0:02:28]}  Bxc6 {[%clk 0:03:00]} 9. Qxd4 {[%clk 0:02:27]}  Bxf3 {[%clk 0:02:46]} 10. Qxd8+ {[%clk 0:02:25]}  Rxd8 {[%clk 0:02:47]} 11. gxf3 {[%clk 0:02:25]}  Bg7 {[%clk 0:02:37]} 12. f4 {[%clk 0:02:20]}  f6 {[%clk 0:02:37]} 13. d4 {[%clk 0:02:10]}  Rxd4 {[%clk 0:02:35]} 14. Be3 {[%clk 0:02:10]}  Rd8 {[%clk 0:02:28]} 15. Bxa7 {[%clk 0:01:41]}  fxe5 {[%clk 0:02:27]} 16. fxe5 {[%clk 0:01:25]}  Bxe5 {[%clk 0:02:26]} 17. Nc3 {[%clk 0:01:26]}  Nf6 {[%clk 0:02:25]} 18. Bb6 {[%clk 0:01:17]}  Rd7 {[%clk 0:02:24]} 19. Ke2 {[%clk 0:01:07]}  O-O {[%clk 0:02:17]} 20. Rad1 {[%clk 0:01:01]}  Rxd1 {[%clk 0:02:16]} 21. Rxd1 {[%clk 0:01:01]}  Bxh2 {[%clk 0:02:15]} 22. Nd5 {[%clk 0:00:40]}  Nxd5 {[%clk 0:02:09]} 23. Rxd5 {[%clk 0:00:41]}  Bd6 {[%clk 0:02:10]} 24. a4 {[%clk 0:00:29]}  h5 {[%clk 0:02:07]} 25. Bc5 {[%clk 0:00:22]}  Rf5 {[%clk 0:02:06]} 26. Rxf5 {[%clk 0:00:12]}  gxf5 {[%clk 0:02:07]} 27. b4 {[%clk 0:00:07]}  Kf7 {[%clk 0:01:53]} 28. Kf3 {[%clk 0:00:06]}  Ke6 {[%clk 0:01:53]} 29. a5 {[%clk 0:00:02]}  Bxc5 {[%clk 0:01:52]} 30. bxc5 {[%clk 0:00:03]}  Kd5 {[%clk 0:01:53]} 31. Kf4 {[%clk 0:00:00]}  h4 {[%clk 0:01:49]} 0-1


[Site "https://www.chess.com"]

[Event "Titled Tuesday Blitz May 23 Early 2023"]
[White "Ibadov, Dashgyn"]
[Black "Kopczynski, Michal"]
[WhiteFideId "24107514"]
[BlackFideId "1124200"]
[WhiteElo "2208"]
[BlackElo "2212"]
[Result "1-0"]
[Round "10"]
[TimeControl "180+2"]
[Date "2023.05.23"]
[WhiteClock "0:00:47"]
[BlackClock "0:01:21"]

1. e4 {[%clk 0:03:00]}  c5 {[%clk 0:02:59]} 2. Nf3 {[%clk 0:03:01]}  d6 {[%clk 0:03:00]} 3. d4 {[%clk 0:03:01]}  cxd4 {[%clk 0:03:01]} 4. Nxd4 {[%clk 0:03:02]}  Nf6 {[%clk 0:03:01]} 5. Nc3 {[%clk 0:03:02]}  g6 {[%clk 0:03:01]} 6. Be3 {[%clk 0:03:01]}  Bg7 {[%clk 0:03:02]} 7. f3 {[%clk 0:03:01]}  O-O {[%clk 0:03:02]} 8. Qd2 {[%clk 0:03:01]}  Nc6 {[%clk 0:03:03]} 9. O-O-O {[%clk 0:03:01]}  d5 {[%clk 0:03:03]} 10. Nxc6 {[%clk 0:03:00]}  bxc6 {[%clk 0:03:03]} 11. Qe1 {[%clk 0:03:01]}  e6 {[%clk 0:03:02]} 12. h4 {[%clk 0:02:48]}  Qa5 {[%clk 0:03:02]} 13. Kb1 {[%clk 0:02:13]}  Rb8 {[%clk 0:03:01]} 14. Bd4 {[%clk 0:01:49]}  Bd7 {[%clk 0:01:58]} 15. h5 {[%clk 0:01:19]}  c5 {[%clk 0:01:53]} 16. Bxf6 {[%clk 0:01:12]}  Bxf6 {[%clk 0:01:51]} 17. e5 {[%clk 0:01:12]}  d4 {[%clk 0:01:41]} 18. Nd5 {[%clk 0:00:48]}  Bd8 {[%clk 0:01:28]} 19. Qxa5 {[%clk 0:00:46]}  Bxa5 {[%clk 0:01:29]} 20. Nf6+ {[%clk 0:00:46]}  Kg7 {[%clk 0:01:21]} 21. Nxd7 {[%clk 0:00:47]} 1-0


[Site "https://www.chess.com"]

[Event "Titled Tuesday Blitz May 23 Early 2023"]
[White "Han, Yichen"]
[Black "Herzog2012"]
[WhiteFideId "1054430"]
[WhiteElo "2342"]
[BlackElo "2382"]
[Result "1-0"]
[Round "10"]
[TimeControl "180+2"]
[Date "2023.05.23"]
[WhiteClock "0:00:09"]
[BlackClock "0:00:06"]

1. e4 {[%clk 0:03:00]}  c5 {[%clk 0:02:57]} 2. Nc3 {[%clk 0:03:00]}  Nc6 {[%clk 0:02:57]} 3. Bb5 {[%clk 0:02:59]}  Nd4 {[%clk 0:02:55]} 4. Nf3 {[%clk 0:02:58]}  g6 {[%clk 0:02:55]} 5. Nxd4 {[%clk 0:02:53]}  cxd4 {[%clk 0:02:56]} 6. Ne2 {[%clk 0:02:53]}  Bg7 {[%clk 0:02:53]} 7. O-O {[%clk 0:02:53]}  Nf6 {[%clk 0:02:52]} 8. d3 {[%clk 0:02:52]}  Qb6 {[%clk 0:02:51]} 9. Ba4 {[%clk 0:02:46]}  O-O {[%clk 0:02:49]} 10. Bb3 {[%clk 0:02:25]}  a5 {[%clk 0:02:46]} 11. a4 {[%clk 0:02:24]}  d6 {[%clk 0:02:42]} 12. f4 {[%clk 0:02:18]}  Ng4 {[%clk 0:02:25]} 13. h3 {[%clk 0:01:35]}  Ne3 {[%clk 0:02:21]} 14. Bxe3 {[%clk 0:01:33]}  dxe3 {[%clk 0:02:22]} 15. d4 {[%clk 0:01:31]}  Be6 {[%clk 0:02:09]} 16. Ra3 {[%clk 0:01:11]}  Bxb3 {[%clk 0:01:58]} 17. Rxb3 {[%clk 0:01:11]}  Qc6 {[%clk 0:01:57]} 18. Qd3 {[%clk 0:01:02]}  Qxa4 {[%clk 0:01:52]} 19. Rxb7 {[%clk 0:01:01]}  Rab8 {[%clk 0:01:44]} 20. Rxb8 {[%clk 0:00:57]}  Rxb8 {[%clk 0:01:44]} 21. b3 {[%clk 0:00:57]}  Qa2 {[%clk 0:01:41]} 22. Nc3 {[%clk 0:00:52]}  Qb2 {[%clk 0:01:38]} 23. Rb1 {[%clk 0:00:50]}  e2 {[%clk 0:01:10]} 24. Kf2 {[%clk 0:00:41]}  Bxd4+ {[%clk 0:00:33]} 25. Qxd4 {[%clk 0:00:40]}  Qxc2 {[%clk 0:00:32]} 26. Re1 {[%clk 0:00:26]}  Rxb3 {[%clk 0:00:30]} 27. Nd5 {[%clk 0:00:24]}  e6 {[%clk 0:00:24]} 28. Nf6+ {[%clk 0:00:21]}  Kf8 {[%clk 0:00:24]} 29. Qxd6+ {[%clk 0:00:20]}  Kg7 {[%clk 0:00:22]} 30. Ne8+ {[%clk 0:00:20]}  Kg8 {[%clk 0:00:20]} 31. Qe5 {[%clk 0:00:09]}  Rb1 {[%clk 0:00:06]} 32. Qg7# {[%clk 0:00:09]} 1-0


[Site "https://www.chess.com"]

[Event "Titled Tuesday Blitz May 23 Early 2023"]
[White "Wadsworth, Matthew J"]
[Black "Goldin, Roman"]
[WhiteFideId "415804"]
[BlackFideId "2803860"]
[WhiteElo "2347"]
[BlackElo "2312"]
[Result "1-0"]
[Round "10"]
[TimeControl "180+2"]
[Date "2023.05.23"]
[WhiteClock "0:00:23"]
[BlackClock "0:00:00"]

1. Nf3 {[%clk 0:03:00]}  Nf6 {[%clk 0:02:59]} 2. g3 {[%clk 0:03:01]}  b5 {[%clk 0:02:59]} 3. Bg2 {[%clk 0:03:01]}  Bb7 {[%clk 0:02:59]} 4. O-O {[%clk 0:03:01]}  c5 {[%clk 0:03:00]} 5. d3 {[%clk 0:03:01]}  d6 {[%clk 0:02:53]} 6. e4 {[%clk 0:03:00]}  g6 {[%clk 0:02:51]} 7. a4 {[%clk 0:03:00]}  b4 {[%clk 0:02:50]} 8. Nbd2 {[%clk 0:03:00]}  Bg7 {[%clk 0:02:50]} 9. Nc4 {[%clk 0:02:56]}  Nc6 {[%clk 0:02:49]} 10. e5 {[%clk 0:02:54]}  dxe5 {[%clk 0:02:22]} 11. Nfxe5 {[%clk 0:02:53]}  Qc8 {[%clk 0:02:06]} 12. Re1 {[%clk 0:02:16]}  Nxe5 {[%clk 0:02:00]} 13. Rxe5 {[%clk 0:02:08]}  O-O {[%clk 0:01:53]} 14. Rxe7 {[%clk 0:02:02]}  Bxg2 {[%clk 0:01:51]} 15. Kxg2 {[%clk 0:02:02]}  Nd5 {[%clk 0:01:16]} 16. Re1 {[%clk 0:01:59]}  Nb6 {[%clk 0:01:11]} 17. Qf3 {[%clk 0:01:43]}  Nxc4 {[%clk 0:01:08]} 18. dxc4 {[%clk 0:01:43]}  Qa6 {[%clk 0:01:04]} 19. Qb3 {[%clk 0:01:22]}  Rae8 {[%clk 0:01:00]} 20. Rxe8 {[%clk 0:01:16]}  Rxe8 {[%clk 0:01:00]} 21. Be3 {[%clk 0:01:17]}  Re4 {[%clk 0:01:00]} 22. Rd1 {[%clk 0:01:13]}  h6 {[%clk 0:00:32]} 23. Qd3 {[%clk 0:00:52]}  Qxc4 {[%clk 0:00:29]} 24. b3 {[%clk 0:00:45]}  Qe6 {[%clk 0:00:22]} 25. Bxc5 {[%clk 0:00:37]}  Qc6 {[%clk 0:00:21]} 26. Qd5 {[%clk 0:00:33]}  Qxd5 {[%clk 0:00:19]} 27. Rxd5 {[%clk 0:00:34]}  Bc3 {[%clk 0:00:19]} 28. Be3 {[%clk 0:00:29]}  Re7 {[%clk 0:00:06]} 29. Ra5 {[%clk 0:00:29]}  Rd7 {[%clk 0:00:05]} 30. Rxa7 {[%clk 0:00:29]}  Rd1 {[%clk 0:00:05]} 31. Rc7 {[%clk 0:00:27]}  Kg7 {[%clk 0:00:03]} 32. Rc4 {[%clk 0:00:24]}  Ra1 {[%clk 0:00:02]} 33. Bc5 {[%clk 0:00:24]}  Ra2 {[%clk 0:00:00]} 34. Bxb4 {[%clk 0:00:23]} 1-0


[Site "https://www.chess.com"]

[Event "Titled Tuesday Blitz May 23 Early 2023"]
[White "Bilan, Danila"]
[Black "Melikyan, Gnel"]
[WhiteFideId "24161918"]
[BlackFideId "54109990"]
[WhiteElo "2182"]
[BlackElo "2138"]
[Result "0-1"]
[Round "10"]
[TimeControl "180+2"]
[Date "2023.05.23"]
[WhiteClock "0:00:00"]
[BlackClock "0:00:32"]

1. d4 {[%clk 0:03:00]}  d6 {[%clk 0:02:59]} 2. Nf3 {[%clk 0:03:01]}  Nf6 {[%clk 0:03:00]} 3. Bg5 {[%clk 0:02:59]}  Nbd7 {[%clk 0:02:59]} 4. Nbd2 {[%clk 0:02:59]}  h6 {[%clk 0:02:58]} 5. Bh4 {[%clk 0:02:59]}  e5 {[%clk 0:02:58]} 6. e3 {[%clk 0:02:58]}  Be7 {[%clk 0:02:58]} 7. Bc4 {[%clk 0:02:58]}  O-O {[%clk 0:02:57]} 8. c3 {[%clk 0:02:58]}  e4 {[%clk 0:02:53]} 9. Ng1 {[%clk 0:02:56]}  d5 {[%clk 0:02:51]} 10. Bb3 {[%clk 0:02:55]}  c6 {[%clk 0:02:51]} 11. Ne2 {[%clk 0:02:52]}  g5 {[%clk 0:02:49]} 12. Bg3 {[%clk 0:02:52]}  Nh5 {[%clk 0:02:49]} 13. c4 {[%clk 0:02:49]}  Nb6 {[%clk 0:02:44]} 14. Nc3 {[%clk 0:02:44]}  Ng7 {[%clk 0:02:30]} 15. f3 {[%clk 0:02:21]}  exf3 {[%clk 0:02:23]} 16. Qxf3 {[%clk 0:02:07]}  dxc4 {[%clk 0:02:14]} 17. Nxc4 {[%clk 0:02:06]}  Nxc4 {[%clk 0:02:14]} 18. Bxc4 {[%clk 0:02:05]}  Be6 {[%clk 0:02:11]} 19. Bxe6 {[%clk 0:01:35]}  Nxe6 {[%clk 0:02:12]} 20. Qf5 {[%clk 0:01:04]}  Ng7 {[%clk 0:02:08]} 21. Qh3 {[%clk 0:01:02]}  h5 {[%clk 0:02:03]} 22. Bf2 {[%clk 0:00:31]}  g4 {[%clk 0:01:58]} 23. Qg3 {[%clk 0:00:30]}  Bd6 {[%clk 0:01:49]} 24. Qh4 {[%clk 0:00:28]}  Be7 {[%clk 0:01:43]} 25. Qg3 {[%clk 0:00:27]}  f5 {[%clk 0:01:43]} 26. O-O-O {[%clk 0:00:17]}  Bg5 {[%clk 0:01:02]} 27. Kb1 {[%clk 0:00:10]}  Qe7 {[%clk 0:00:56]} 28. h4 {[%clk 0:00:06]}  Bh6 {[%clk 0:00:49]} 29. Rhe1 {[%clk 0:00:04]}  Rae8 {[%clk 0:00:48]} 30. e4 {[%clk 0:00:02]}  fxe4 {[%clk 0:00:44]} 31. Nxe4 {[%clk 0:00:03]}  Qf7 {[%clk 0:00:37]} 32. Be3 {[%clk 0:00:00]}  Nf5 {[%clk 0:00:32]} 0-1


[Site "https://www.chess.com"]

[Event "Titled Tuesday Blitz May 23 Early 2023"]
[White "LeoLV10"]
[Black "Ordekalog"]
[WhiteElo "2409"]
[BlackElo "2510"]
[Result "0-1"]
[Round "10"]
[TimeControl "180+2"]
[Date "2023.05.23"]
[WhiteClock "0:00:47"]
[BlackClock "0:00:57"]

1. e4 {[%clk 0:03:00]}  d5 {[%clk 0:02:58]} 2. exd5 {[%clk 0:02:56]}  Qxd5 {[%clk 0:02:58]} 3. Nc3 {[%clk 0:02:55]}  Qa5 {[%clk 0:02:58]} 4. Bc4 {[%clk 0:02:55]}  Nf6 {[%clk 0:02:58]} 5. d3 {[%clk 0:02:55]}  c6 {[%clk 0:02:56]} 6. Bd2 {[%clk 0:02:55]}  Qc7 {[%clk 0:02:55]} 7. Qe2 {[%clk 0:02:54]}  Bg4 {[%clk 0:02:53]} 8. f3 {[%clk 0:02:55]}  Bf5 {[%clk 0:02:52]} 9. g4 {[%clk 0:02:55]}  Bc8 {[%clk 0:02:47]} 10. O-O-O {[%clk 0:02:54]}  b5 {[%clk 0:02:46]} 11. Bb3 {[%clk 0:02:53]}  a5 {[%clk 0:02:47]} 12. a4 {[%clk 0:02:53]}  b4 {[%clk 0:02:46]} 13. Ne4 {[%clk 0:02:51]}  Nxe4 {[%clk 0:02:45]} 14. fxe4 {[%clk 0:02:50]}  Nd7 {[%clk 0:02:42]} 15. h3 {[%clk 0:02:50]}  Nc5 {[%clk 0:02:42]} 16. Nf3 {[%clk 0:02:48]}  Nxb3+ {[%clk 0:02:41]} 17. cxb3 {[%clk 0:02:49]}  Ba6 {[%clk 0:02:38]} 18. Rhf1 {[%clk 0:02:42]}  e6 {[%clk 0:02:38]} 19. Ng5 {[%clk 0:02:34]}  f6 {[%clk 0:01:58]} 20. Nxe6 {[%clk 0:02:29]}  Qd6 {[%clk 0:01:58]} 21. Nf4 {[%clk 0:02:26]}  O-O-O {[%clk 0:01:45]} 22. Be3 {[%clk 0:02:23]}  Kb7 {[%clk 0:01:35]} 23. Rf3 {[%clk 0:01:57]}  g5 {[%clk 0:01:32]} 24. Nh5 {[%clk 0:01:54]}  Bxd3 {[%clk 0:01:31]} 25. Qf2 {[%clk 0:01:27]}  Be7 {[%clk 0:01:26]} 26. Bb6 {[%clk 0:01:20]}  Rd7 {[%clk 0:01:07]} 27. Rfxd3 {[%clk 0:01:19]}  Qxd3 {[%clk 0:01:08]} 28. Rd2 {[%clk 0:01:19]}  Qxd2+ {[%clk 0:01:06]} 29. Qxd2 {[%clk 0:01:14]}  Rxd2 {[%clk 0:01:06]} 30. Bxa5 {[%clk 0:01:15]}  Rg2 {[%clk 0:01:02]} 31. Ng7 {[%clk 0:00:56]}  Bc5 {[%clk 0:00:59]} 32. Nf5 {[%clk 0:00:56]}  Re8 {[%clk 0:00:58]} 33. Bxb4 {[%clk 0:00:49]}  Bxb4 {[%clk 0:00:57]} 34. Nd6+ {[%clk 0:00:47]}  Bxd6 {[%clk 0:00:57]} 0-1


[Site "https://www.chess.com"]